fUSD/lending_fUSD_20240812
["ID","MTS","AMOUNT","RATE_DAILY","PERIOD"]
[334715777,1723500632462,-911.28,0.00010918,2]
[334715778,1723500632472,-931.67,0.00010918,2]
[334715779,1723500632482,-499.99,0.00010918,2]
[334715780,1723500632492,-230.68271783,0.0001092,2]
[334715781,1723500632501,-155.0,0.0001092,2]
[334715782,1723500632511,-155.0,0.0001092,2]
[334715783,1723500632521,-303.90469939,0.0001092,2]
[334715784,1723500632530,-468.58,0.00010921,2]
[334715785,1723500632539,-468.58,0.00010924,2]
[334715786,1723500632549,-468.58,0.00010927,2]
[334715787,1723500632558,-468.58,0.0001093,2]
[334715788,1723500632568,-468.58,0.00010932,2]
[334715789,1723500632577,-468.58,0.00010935,2]
[334715790,1723500632593,-468.58,0.00010938,2]
[334715791,1723500632602,-468.58,0.00010941,2]
[334715792,1723500632612,-468.58,0.00010944,2]
[334715793,1723500632622,-468.58,0.00010947,2]
[334715794,1723500632632,-468.58,0.0001095,2]
[334715795,1723500632641,-468.58,0.00010953,2]
[334715796,1723500632650,-468.58,0.00010955,2]
[334715797,1723500632660,-468.58,0.00010958,2]
[334715798,1723500632669,-250.0,0.00010959,2]
[334715799,1723500632679,-2000.0,0.00010959,2]
[334715800,1723500632688,-150.0,0.00010959,2]
[334715801,1723500632698,-468.58,0.00010961,2]
[334715802,1723500632708,-1049.84272767,0.0001099,2]
[334715803,1723500632717,-27899.64465842,0.00011,2]
[334715804,1723500632740,-81678.39521146,0.00011,2]
[334715805,1723500632752,-6599.90554356,0.00011,2]
[334715806,1723500632768,-2530.54420362,0.00011,2]
[334715807,1723500632780,-3347.64236569,0.00011,2]
[334715808,1723500638218,-313.999999,0.00011,2]
[334715809,1723500638251,-5255.92241343,0.00011,2]
[334715810,1723500638285,-7466.99627887,0.00011,2]
[334715811,1723500638401,-1830.49503964,0.00011,2]
[334715812,1723500638459,-300.0,0.00011,2]
[334715901,1723500640094,-99485.55182556,0.00011,2]
[334715902,1723500640103,-250.0,0.00011,2]
[334715903,1723500640112,-111035.38763578,0.00011,2]
[334715904,1723500640123,-3000.0,0.00011,2]
[334715905,1723500640132,-380.26,0.00011,2]
[334715906,1723500640141,-438.51100668,0.00011005,2]
[334715907,1723500640149,-200.0,0.00011008,2]
[334715908,1723500640160,-156.73,0.00011022,2]
[334715909,1723500640169,-156.73,0.00011028,2]
[334715910,1723500640178,-156.73,0.00011034,2]
[334715911,1723500640187,-156.73,0.0001104,2]
[334715912,1723500640197,-156.73,0.00011046,2]
[334715913,1723500640205,-156.73,0.00011052,2]
[334715914,1723500640214,-156.73,0.00011058,2]
[334715915,1723500640223,-156.73,0.00011065,2]
[334715916,1723500640233,-156.73,0.00011071,2]
[334715917,1723500640242,-156.73,0.00011077,2]
[334715918,1723500640252,-719.8919336,0.00011079,2]
[334715919,1723500640261,-155.0,0.00011079,2]
[334715920,1723500640270,-2111.39291129,0.00011079,2]
[334715921,1723500640279,-155.0,0.00011079,2]
[334715922,1723500640288,-155.0,0.00011079,2]
[334715923,1723500640297,-401.38425567,0.00011079,2]
[334715924,1723500640306,-241.00170759,0.00011079,2]
[334715925,1723500640315,-400.0,0.00011079,2]
[334715926,1723500640324,-155.0,0.00011079,2]
[334715927,1723500640334,-155.0,0.00011079,2]
[334715928,1723500640343,-182.74808241,0.00011079,2]
[334715929,1723500640353,-207.36545677,0.00011079,2]
[334715930,1723500640362,-155.0,0.00011079,2]
[334715931,1723500640371,-155.0,0.00011079,2]
[334715932,1723500640381,-158.24348016,0.00011079,2]
[334715933,1723500640390,-306.30964202,0.00011079,2]
[334715934,1723500640399,-155.0,0.00011079,2]
[334715935,1723500640408,-155.0,0.00011079,2]
[334715936,1723500640417,-155.0,0.00011079,2]
[334715937,1723500640426,-1631.94044813,0.00011079,2]
[334715938,1723500640436,-310.0,0.00011079,2]
[334715939,1723500640445,-261.25595185,0.00011103,2]
[334715940,1723500640455,-155.0,0.00011103,2]
[334715941,1723500640464,-936.04678885,0.00011105,2]
[334715942,1723500640473,-216.48895648,0.00011105,2]
[334715943,1723500640482,-15483.10746637,0.00011105,2]
[334715944,1723500640491,-338.12109929,0.00011105,2]
[334715946,1723500640500,-577.80070956,0.00011105,2]
[334715948,1723500640510,-432.47832469,0.00011105,2]
[334715950,1723500640519,-163.61598892,0.00011105,2]
[334715952,1723500640529,-3122.57362195,0.00011105,2]
[334715954,1723500640538,-243.25458866,0.00011105,2]
[334715956,1723500640547,-365.80180037,0.00011105,2]
[334715958,1723500640556,-595.07789582,0.00011105,2]
[334715960,1723500640566,-2836.06303036,0.00011105,2]
[334715962,1723500640575,-155.0,0.00011105,2]
[334715964,1723500640586,-653.64489815,0.00011105,2]
[334715966,1723500640595,-228.73687271,0.00011105,2]
[334715968,1723500640605,-1500.0,0.00011105,2]
[334715970,1723500640615,-257.88535117,0.00011105,2]
[334715972,1723500640624,-155.0,0.00011105,2]
[334715974,1723500640634,-1256.92584908,0.00011105,2]
[334715975,1723500640643,-155.0,0.00011105,2]
[334715977,1723500640653,-10534.15307555,0.00011105,2]
[334715979,1723500640662,-155.0,0.00011105,2]
[334715981,1723500640672,-155.0,0.00011105,2]
[334715983,1723500640681,-155.0,0.00011105,2]
[334715985,1723500640691,-155.0,0.00011105,2]
[334715986,1723500640700,-419.10841212,0.00011161,2]
[334715988,1723500640709,-35727.72779464,0.00011186,2]
[334715990,1723500640719,-25322.221128,0.00011186,2]
[334715992,1723500640729,-800.0,0.0001119,2]
[334715994,1723500640739,-320.0,0.00011196,2]
[334715996,1723500640748,-360.0,0.00011205,2]
[334715998,1723500640757,-230.25673182,0.00011206,2]
[334716000,1723500640767,-420.3320603,0.00011368,2]
[334716002,1723500640777,-388.08345911,0.00011504,2]
[334716004,1723500640786,-500.0,0.0001165,2]
[334716006,1723500640795,-500.0,0.00011659,2]
[334716008,1723500640805,-500.0,0.00011668,2]
[334716010,1723500640814,-151.03,0.00011675,2]
[334716012,1723500640823,-500.0,0.00011677,2]
[334716014,1723500640834,-500.0,0.00011686,2]
[334716016,1723500640844,-500.0,0.00011694,2]
[334716018,1723500640853,-500.0,0.00011703,2]
[334716020,1723500640863,-500.0,0.00011712,2]
[334716022,1723500640872,-500.0,0.00011721,2]
[334716024,1723500640881,-500.0,0.0001173,2]
[334716026,1723500640890,-500.0,0.00011738,2]
[334716028,1723500640899,-500.0,0.00011747,2]
[334716030,1723500640909,-500.0,0.00011756,2]
[334716032,1723500640918,-500.0,0.00011765,2]
[334716034,1723500640926,-500.0,0.00011774,2]
[334716036,1723500640938,-500.0,0.00011782,2]
[334716038,1723500640947,-500.0,0.00011791,2]
[334716040,1723500640956,-500.0,0.000118,2]
[334716042,1723500640965,-500.0,0.00011809,2]
[334716044,1723500640975,-500.0,0.00011818,2]
[334716046,1723500640984,-500.0,0.00011826,2]
[334716048,1723500640993,-500.0,0.00011835,2]
[334716050,1723500641002,-500.0,0.00011844,2]
[334716052,1723500641011,-155.0,0.0001185,2]
[334716054,1723500641021,-500.0,0.00011853,2]
[334716055,1723500641030,-500.0,0.00011862,2]
[334716057,1723500641039,-500.0,0.0001187,2]
[334716059,1723500641049,-500.0,0.00011879,2]
[334716061,1723500641058,-500.0,0.00011888,2]
[334716063,1723500641067,-500.0,0.00011897,2]
[334716065,1723500641077,-500.0,0.00011906,2]
[334716067,1723500641091,-500.0,0.00011914,2]
[334716069,1723500641099,-500.0,0.00011923,2]
[334716071,1723500641108,-500.0,0.00011932,2]
[334716072,1723500641117,-500.0,0.00011941,2]
[334716074,1723500641127,-500.0,0.0001195,2]
[334716076,1723500641136,-500.0,0.00011958,2]
[334716078,1723500641145,-9271.17344175,0.00011959,2]
[334716080,1723500641154,-4795.75835827,0.00011959,2]
[334716082,1723500641166,-9903.70253644,0.00011959,2]
[334716084,1723500641176,-9903.70253644,0.00011959,2]
[334716086,1723500641185,-438.51100664,0.00011962,2]
[334716088,1723500641195,-500.0,0.00011967,2]
[334716090,1723500641204,-500.0,0.00011976,2]
[334716092,1723500641213,-420.0,0.00011978,2]
[334716094,1723500641223,-500.0,0.00011985,2]
[334716095,1723500641233,-500.0,0.00011994,2]
[334716097,1723500641243,-6135.28385605,0.00012,2]
[334716099,1723500641253,-600.0,0.00012,2]
[334716101,1723500641263,-500.0,0.00012002,2]
[334716103,1723500641273,-500.0,0.00012011,2]
[334716106,1723500641283,-500.0,0.0001202,2]
[334716108,1723500641292,-500.0,0.00012029,2]
[334716110,1723500641301,-500.0,0.00012038,2]
[334716111,1723500641311,-500.0,0.00012046,2]
[334716113,1723500641319,-500.0,0.00012055,2]
[334716115,1723500641329,-500.0,0.00012064,2]
[334716117,1723500641339,-500.0,0.00012073,2]
[334716119,1723500641348,-500.0,0.00012082,2]
[334716121,1723500641358,-3000.0,0.0001209,2]
[334716123,1723500641368,-500.0,0.0001209,2]
[334716125,1723500641377,-500.0,0.00012099,2]
[334716127,1723500641387,-500.0,0.00012108,2]
[334716129,1723500641396,-500.0,0.00012117,2]
[334716131,1723500641405,-500.0,0.00012126,2]
[334716133,1723500641415,-500.0,0.00012134,2]
[334716135,1723500641424,-500.0,0.00012143,2]
[334716137,1723500641433,-500.0,0.00012152,2]
[334716139,1723500641443,-500.0,0.00012161,2]
[334716140,1723500641452,-500.0,0.0001217,2]
[334716142,1723500641461,-500.0,0.00012178,2]
[334716144,1723500641470,-500.0,0.00012187,2]
[334716146,1723500641481,-500.0,0.00012196,2]
[334716148,1723500641490,-500.0,0.00012205,2]
[334716150,1723500641499,-500.0,0.00012214,2]
[334716152,1723500641508,-500.0,0.00012222,2]
[334716154,1723500641518,-500.0,0.00012231,2]
[334716156,1723500641527,-500.0,0.0001224,2]
[334716158,1723500641536,-500.0,0.00012249,2]
[334716160,1723500641545,-500.0,0.00012258,2]
[334716162,1723500641555,-500.0,0.00012266,2]
[334716164,1723500641564,-500.0,0.00012275,2]
[334716166,1723500641573,-500.0,0.00012284,2]
[334716168,1723500641582,-500.0,0.00012293,2]
[334716170,1723500641593,-500.0,0.00012302,2]
[334716172,1723500641602,-500.0,0.0001231,2]
[334716174,1723500641611,-500.0,0.00012319,2]
[334716176,1723500641621,-500.0,0.00012328,2]
[334716178,1723500641630,-500.0,0.00012337,2]
[334716180,1723500641639,-5403.79429818,0.00012397,2]
[334716182,1723500641648,-10311.81721734,0.00012399,2]
[334716184,1723500641657,-800.0,0.00012434,2]
[334716186,1723500641666,-171.50474403,0.00012439,2]
[334716188,1723500641675,-2329.8302,0.00012439,2]
[334716190,1723500641684,-320.0,0.0001244,2]
[334716192,1723500641693,-664.363,0.00012447,2]
[334716194,1723500641702,-360.0,0.0001245,2]
[334716195,1723500641711,-2002.199999,0.000125,2]
[334716197,1723500641720,-2000.0,0.000125,2]
[334716199,1723500641729,-144895.08043955,0.0001254,2]
[334716287,1723500642574,-2871.20000003,0.0001254,2]
[334716344,1723500643103,-2060.65439326,0.0001254,2]
[334716389,1723500643677,-4616.80177371,0.0001254,2]
[334716391,1723500643688,-20567.67826085,0.0001254,2]
[334716393,1723500643700,-2254.85215928,0.0001254,2]
[334716395,1723500643711,-2890.86680234,0.0001254,2]
[334716397,1723500643723,-753.69151485,0.0001254,2]
[334716400,1723500643747,-374.72962927,0.0001254,2]
[334716403,1723500643766,-1318.27107175,0.0001254,2]
[334716405,1723500643777,-1245.28478886,0.0001254,2]
[334716664,1723500646306,-2784.40376051,0.0001254,2]
[334716686,1723500646527,-553.6124409,0.0001254,2]
[334716687,1723500646538,-3737.94016708,0.0001254,2]
[334716688,1723500646549,-6316.88516173,0.0001254,2]
[334716689,1723500646567,-810.7547,0.0001254,2]
[334716690,1723500646606,-283.69125672,0.0001254,2]
[334716833,1723501122889,237.69,9.31e-05,2]
[334716834,1723501190323,8565.3280186,9.31e-05,2]
[334716835,1723501190345,10000.0,9.31e-05,2]
[334716836,1723501190366,10000.0,9.31e-05,2]
[334716837,1723501190387,1434.6719814,9.31e-05,2]
[334716840,1723501246141,200.58822148,9.31e-05,10]
[334716864,1723501656858,225.8,9.031e-05,2]
[334716865,1723501718848,8138.93979712,9.031e-05,2]
[334716866,1723501718869,10000.0,9.031e-05,2]
[334716867,1723501718890,1861.06020288,9.031e-05,2]
[334716910,1723501832530,-201.0,9.999e-05,2]
[334716911,1723501832540,-550.0,0.0001,2]
[334716912,1723501832549,-8249.45377389,0.000109,2]
[334716913,1723501832558,-637.8204899,0.0001095,2]
[334716914,1723501832567,-180.0,0.00010972,2]
[334716915,1723501832576,-300.0,0.0001098,2]
[334716916,1723501832585,-200.0,0.00010982,2]
[334716917,1723501832594,-150.0,0.00010999,2]
[334716918,1723501832603,-16583.22573621,0.00011,2]
[334716919,1723501832662,-727.5020417,0.00011,2]
[334716920,1723501832673,-10618.65198285,0.00011,2]
[334716921,1723501832685,-3520.05519747,0.00011,2]
[334716971,1723501838558,-479.87927214,0.00011,2]
[334717115,1723501843710,-1279.97005618,0.00011,2]
[334717116,1723501843751,-1647.90000071,0.00011,2]
[334717141,1723501846616,-13845.770288,0.00011,2]
[334717142,1723501846726,-9831.81837573,0.00011,2]
[334717155,1723502187501,214.51,9.037e-05,2]
[334717172,1723502787275,203.78,8.219e-05,2]
[334717222,1723503031603,-550.0,0.0001,2]
[334717223,1723503031613,-775.29,0.00010059,2]
[334717224,1723503031622,-521.06,0.00010115,2]
[334717225,1723503031631,-180.0,0.00010169,2]
[334717226,1723503031646,-168.08,0.0001021,2]
[334717227,1723503031655,-232.0,0.00010274,2]
[334717228,1723503031664,-203.78,0.00010482,2]
[334717229,1723503031673,-170.36,0.00010582,2]
[334717230,1723503031682,-150.0,0.00010767,2]
[334717231,1723503031692,-300.0,0.00010799,2]
[334717232,1723503031701,-839.2412,0.000108,2]
[334717233,1723503031711,-11130.3814,0.000108,2]
[334717234,1723503031720,-3680.0082,0.000108,2]
[334717235,1723503031730,-1033.1993,0.000108,2]
[334717236,1723503031739,-2500.0,0.000108,2]
[334717237,1723503031749,-499.99,0.000108,2]
[334717238,1723503031758,-1081.78,0.000108,2]
[334717239,1723503031768,-3000.0,0.0001089,2]
[334717240,1723503031777,-22904.26,0.0001089,2]
[334717241,1723503031787,-178.47,0.00010899,2]
[334717242,1723503031798,-965.9951,0.000109,2]
[334717243,1723503031810,-80996.8354,0.000109,2]
[334717244,1723503031820,-100000.0,0.000109,2]
[334717245,1723503031830,-4756.2146,0.000109,2]
[334717246,1723503031839,-4491.1038,0.000109,2]
[334717248,1723503031848,-1000.0,0.000109,2]
[334717250,1723503031858,-271.45480386,0.000109,2]
[334717252,1723503031868,-178.47,0.00010917,2]
[334717254,1723503031877,-178.47,0.00010935,2]
[334717256,1723503031889,-743.79,0.00010935,2]
[334717258,1723503031899,-168.0,0.00010952,2]
[334717260,1723503031908,-178.47,0.00010953,2]
[334717262,1723503031917,-526.71491504,0.00010954,2]
[334717264,1723503031927,-224.34382335,0.00010954,2]
[334717266,1723503031936,-802.37415229,0.00010954,2]
[334717268,1723503031946,-155.29884074,0.00010954,2]
[334717270,1723503031955,-2000.0,0.00010959,2]
[334717272,1723503031966,-150.0,0.00010959,2]
[334717274,1723503031975,-448.22107204,0.00010999,2]
[334717276,1723503031985,-195761.40164982,0.00011,2]
[334717278,1723503031994,-250.0,0.00011,2]
[334717280,1723503032005,-323.22,0.00011,2]
[334717282,1723503032014,-892.0,0.00011061,2]
[334717284,1723503032024,-151.03,0.00011095,2]
[334717286,1723503032034,-15483.10746637,0.00011105,2]
[334717289,1723503032043,-9903.70253644,0.00011105,2]
[334717292,1723503032053,-3636.67016567,0.00011105,2]
[334717295,1723503032062,-9271.17344175,0.00011105,2]
[334717298,1723503032072,-10534.15307555,0.00011105,2]
[334717301,1723503032081,-178.14591444,0.00011105,2]
[334717303,1723503032090,-2221.00758769,0.00011105,2]
[334717305,1723503032099,-419.10841212,0.00011105,2]
[334717306,1723503032111,-240.13389093,0.00011105,2]
[334717307,1723503032120,-155.0,0.00011105,2]
[334717308,1723503032129,-210.05752361,0.00011105,2]
[334717309,1723503032140,-182.74808241,0.00011105,2]
[334717310,1723503032149,-159.20339,0.00011105,2]
[334717311,1723503032158,-7000.0,0.00011105,2]
[334717312,1723503032167,-243.25458866,0.00011105,2]
[334717313,1723503032176,-595.07789582,0.00011105,2]
[334717314,1723503032185,-600.70924328,0.00011105,2]
[334717315,1723503032195,-3937.46359227,0.00011105,2]
[334717316,1723503032203,-203.74648107,0.00011105,2]
[334717317,1723503032212,-3875.44196721,0.00011105,2]
[334717318,1723503032221,-264.49036255,0.00011105,2]
[334717319,1723503032232,-3082.18064459,0.00011105,2]
[334717320,1723503032241,-3032.35761195,0.00011105,2]
[334717321,1723503032253,-1406.13177639,0.00011105,2]
[334717322,1723503032263,-3404.38999599,0.00011105,2]
[334717323,1723503032272,-151.0,0.00011105,2]
[334717324,1723503032282,-151.0,0.00011105,2]
[334717325,1723503032291,-151.0,0.00011105,2]
[334717326,1723503032301,-181.882084,0.00011105,2]
[334717327,1723503032311,-2841.12816254,0.00011105,2]
[334717328,1723503032322,-181.882084,0.00011105,2]
[334717329,1723503032331,-151.0,0.00011105,2]
[334717330,1723503032340,-151.0,0.00011105,2]
[334717331,1723503032349,-151.0,0.00011105,2]
[334717332,1723503032359,-151.0,0.00011105,2]
[334717333,1723503032368,-151.0,0.00011105,2]
[334717334,1723503032377,-638.934986,0.00011105,2]
[334717335,1723503032386,-638.934986,0.00011105,2]
[334717336,1723503032395,-151.0,0.00011105,2]
[334717337,1723503032405,-226.534642,0.00011105,2]
[334717338,1723503032414,-226.534642,0.00011105,2]
[334717339,1723503032424,-2502.58566001,0.00011105,2]
[334717340,1723503032433,-151.0,0.00011105,2]
[334717341,1723503032442,-151.0,0.00011105,2]
[334717342,1723503032452,-151.0,0.00011105,2]
[334717343,1723503032462,-170.375111,0.00011105,2]
[334717344,1723503032472,-151.0,0.00011105,2]
[334717345,1723503032481,-156.055181,0.00011105,2]
[334717346,1723503032492,-156.055181,0.00011105,2]
[334717347,1723503032501,-204.185008,0.00011105,2]
[334717348,1723503032511,-151.0,0.00011105,2]
[334717349,1723503032520,-2341.8386325,0.00011105,2]
[334717350,1723503032529,-204.185008,0.00011105,2]
[334717351,1723503032539,-442.129003,0.00011105,2]
[334717352,1723503032548,-442.129003,0.00011105,2]
[334717353,1723503032557,-151.0,0.00011105,2]
[334717354,1723503032567,-151.0,0.00011105,2]
[334717355,1723503032577,-196.084293,0.00011105,2]
[334717356,1723503032586,-196.084293,0.00011105,2]
[334717357,1723503032596,-151.0,0.00011105,2]
[334717358,1723503032606,-151.0,0.00011105,2]
[334717359,1723503032615,-151.0,0.00011105,2]
[334717360,1723503032625,-151.0,0.00011105,2]
[334717361,1723503032634,-151.0,0.00011105,2]
[334717362,1723503032646,-151.0,0.00011105,2]
[334717363,1723503032656,-238.263108,0.00011105,2]
[334717364,1723503032665,-151.0,0.00011105,2]
[334717365,1723503032674,-238.263108,0.00011105,2]
[334717366,1723503032685,-151.0,0.00011105,2]
[334717367,1723503032694,-151.0,0.00011105,2]
[334717368,1723503032703,-151.0,0.00011105,2]
[334717369,1723503032713,-151.0,0.00011105,2]
[334717370,1723503032723,-151.0,0.00011105,2]
[334717371,1723503032733,-151.0,0.00011105,2]
[334717372,1723503032743,-151.0,0.00011105,2]
[334717373,1723503032753,-151.0,0.00011105,2]
[334717374,1723503032763,-151.0,0.00011105,2]
[334717375,1723503032773,-2145.94258433,0.00011105,2]
[334717376,1723503032783,-151.0,0.00011105,2]
[334717377,1723503032792,-151.0,0.00011105,2]
[334717378,1723503032803,-151.0,0.00011105,2]
[334717379,1723503032816,-155.0,0.00011105,2]
[334717380,1723503032826,-2015.842787,0.00011105,2]
[334717381,1723503032836,-151.0,0.00011105,2]
[334717382,1723503032847,-2015.842787,0.00011105,2]
[334717383,1723503032857,-170.755844,0.00011105,2]
[334717384,1723503032866,-170.755844,0.00011105,2]
[334717385,1723503032875,-210.290052,0.00011105,2]
[334717386,1723503032888,-155.0,0.00011105,2]
[334717387,1723503032898,-210.290052,0.00011105,2]
[334717388,1723503032908,-151.0,0.00011105,2]
[334717389,1723503032917,-230.231872,0.00011105,2]
[334717390,1723503032926,-1739.57017204,0.0001116,2]
[334717391,1723503032935,-151.0,0.0001116,2]
[334717392,1723503032944,-151.0,0.0001116,2]
[334717393,1723503032954,-151.0,0.0001116,2]
[334717394,1723503032963,-239.609362,0.0001116,2]
[334717395,1723503032973,-151.0,0.0001116,2]
[334717396,1723503032982,-35727.72779464,0.00011186,2]
[334717397,1723503032993,-25322.221128,0.00011186,2]
[334717398,1723503033002,-151.0,0.00011186,2]
[334717399,1723503033012,-388.08345911,0.00011282,2]
[334717400,1723503033020,-420.3320603,0.000115,2]
[334717401,1723503033029,-1275.64502519,0.00011525,2]
[334717402,1723503033038,-1298.23330788,0.00011525,2]
[334717403,1723503033048,-1139.1217656,0.00011525,2]
[334717404,1723503033057,-232.0,0.00011559,2]
[334717405,1723503033066,-500.0,0.00011633,2]
[334717406,1723503033075,-151.0,0.00011633,2]
[334717407,1723503033084,-151.0,0.00011633,2]
[334717408,1723503033094,-151.0,0.00011633,2]
[334717409,1723503033103,-151.0,0.00011633,2]
[334717410,1723503033112,-500.0,0.00011642,2]
[334717411,1723503033121,-200.0,0.0001174,2]
[334717412,1723503033131,-151.0,0.00011864,2]
[334717413,1723503033142,-2015.842787,0.00011864,2]
[334717414,1723503033151,-151.0,0.00011864,2]
[334717415,1723503033160,-2015.842787,0.00011864,2]
[334717416,1723503033170,-170.755844,0.00011864,2]
[334717417,1723503033179,-170.755844,0.00011864,2]
[334717418,1723503033188,-210.290052,0.00011864,2]
[334717419,1723503033197,-210.290052,0.00011864,2]
[334717420,1723503033206,-151.0,0.00011864,2]
[334717421,1723503033215,-420.0,0.00011869,2]
[334717422,1723503033224,-151.0,0.00012,2]
[334717423,1723503033233,-151.0,0.00012,2]
[334717424,1723503033242,-151.0,0.00012,2]
[334717425,1723503033252,-181.882084,0.00012,2]
[334717426,1723503033261,-181.882084,0.00012,2]
[334717427,1723503033269,-151.0,0.00012,2]
[334717428,1723503033278,-151.0,0.00012,2]
[334717429,1723503033288,-151.0,0.00012,2]
[334717430,1723503033297,-151.0,0.00012,2]
[334717431,1723503033305,-638.934986,0.00012,2]
[334717432,1723503033315,-638.934986,0.00012,2]
[334717433,1723503033324,-151.0,0.00012,2]
[334717434,1723503033333,-226.534642,0.00012,2]
[334717435,1723503033342,-226.534642,0.00012,2]
[334717436,1723503033351,-151.0,0.00012,2]
[334717437,1723503033360,-151.0,0.00012,2]
[334717438,1723503033370,-151.0,0.00012,2]
[334717439,1723503033379,-156.055181,0.00012,2]
[334717440,1723503033389,-156.055181,0.00012,2]
[334717441,1723503033398,-204.185008,0.00012,2]
[334717442,1723503033408,-151.0,0.00012,2]
[334717443,1723503033417,-204.185008,0.00012,2]
[334717444,1723503033426,-442.129003,0.00012,2]
[334717445,1723503033435,-442.129003,0.00012,2]
[334717446,1723503033445,-151.0,0.00012,2]
[334717447,1723503033454,-151.0,0.00012,2]
[334717448,1723503033464,-196.084293,0.00012,2]
[334717449,1723503033473,-196.084293,0.00012,2]
[334717450,1723503033483,-151.0,0.00012,2]
[334717451,1723503033493,-151.0,0.00012,2]
[334717452,1723503033502,-151.0,0.00012,2]
[334717453,1723503033512,-151.0,0.00012,2]
[334717454,1723503033522,-151.0,0.00012,2]
[334717455,1723503033532,-238.263108,0.00012,2]
[334717456,1723503033541,-151.0,0.00012,2]
[334717457,1723503033551,-238.263108,0.00012,2]
[334717458,1723503033561,-151.0,0.00012,2]
[334717459,1723503033571,-151.0,0.00012,2]
[334717460,1723503033580,-151.0,0.00012,2]
[334717461,1723503033590,-151.0,0.00012,2]
[334717462,1723503033599,-235.738541,0.00012,2]
[334717463,1723503033608,-600.0,0.00012,2]
[334717464,1723503033618,-7977.0,0.000121,5]
[334717465,1723503033627,-7424.50839648,0.00012311,2]
[334717466,1723503033639,-168.0,0.00012321,2]
[334717467,1723503033648,-5000.0,0.0001236,2]
[334717468,1723503033657,-151.0,0.0001236,2]
[334717469,1723503033667,-151.0,0.0001236,2]
[334717470,1723503033676,-151.0,0.0001236,2]
[334717471,1723503033686,-151.0,0.0001236,2]
[334717472,1723503033695,-2111.39291129,0.00012391,2]
[334717473,1723503033705,-1050.97743081,0.00012391,2]
[334717474,1723503033715,-3121.02924387,0.00012391,2]
[334717475,1723503033724,-2836.06303036,0.00012397,2]
[334717476,1723503033734,-150.0,0.00012403,2]
[334717477,1723503033744,-151.0,0.00012439,2]
[334717478,1723503033754,-7500.0,0.00012439,2]
[334717479,1723503033765,-892.0,0.00012443,2]
[334717480,1723503033774,-171.50474403,0.00012464,2]
[334717481,1723503033784,-2000.0,0.000125,2]
[334717482,1723503033794,-2015.842787,0.000125,2]
[334717483,1723503033806,-151.0,0.000125,2]
[334717484,1723503034025,-2015.842787,0.000125,2]
[334717485,1723503034034,-170.755844,0.000125,2]
[334717486,1723503034043,-170.755844,0.000125,2]
[334717487,1723503034053,-210.290052,0.000125,2]
[334717488,1723503034062,-210.290052,0.000125,2]
[334717489,1723503034072,-151.0,0.000125,2]
[334717490,1723503034082,-2955.4887976,0.00012539,2]
[334717491,1723503034092,-151.0,0.00012539,2]
[334717492,1723503034102,-151.0,0.00012539,2]
[334717493,1723503034112,-151.0,0.00012539,2]
[334717494,1723503034123,-151.0,0.00012539,2]
[334717495,1723503034133,-168.6816,0.00012539,2]
[334717496,1723503034143,-151.0,0.00012539,2]
[334717497,1723503034153,-151.0,0.00012539,2]